bitfinex/quotes_BTCUSD_20250726
["timestamp","ask_amount","ask_price","bid_price","bid_amount"]
[1753533417197,0.38442953,118110.0,118100.0,0.70270065]
[1753533417414,0.38442953,118110.0,118100.0,0.71116769]
[1753533417831,0.37596314,118110.0,118100.0,0.71963466]
[1753533418093,0.37596314,118110.0,118100.0,0.71116769]
[1753533418366,0.37596314,118110.0,118100.0,0.39402948]
[1753533418627,0.38442953,118110.0,118100.0,0.39402948]
[1753533419627,0.38442946,118110.0,118100.0,0.40249645]
[1753533420749,0.38442946,118110.0,118100.0,0.39402948]
[1753533421205,0.38442946,118110.0,118100.0,0.40249645]
[1753533421711,0.36544689,118110.0,118100.0,0.49544064]
[1753533421947,0.36544689,118110.0,118100.0,0.84407885]
[1753533422594,0.34004857,118110.0,118100.0,0.52694064]
[1753533422837,0.35698093,118110.0,118100.0,0.84407885]
[1753533423160,0.3485146,118110.0,118100.0,0.84407885]
[1753533424047,0.35698071,118110.0,118100.0,0.84407885]
[1753533424337,0.36544689,118110.0,118100.0,0.84407885]
[1753533424546,0.36544689,118110.0,118100.0,0.83561188]
[1753533424908,0.35698071,118110.0,118100.0,0.83561188]
[1753533425907,0.3485146,118110.0,118100.0,0.83561188]
[1753533427266,0.35698078,118110.0,118100.0,0.83561188]
[1753533429563,0.35698078,118110.0,118100.0,0.83561196]
[1753533429763,0.3654471,118110.0,118100.0,0.81867795]
[1753533429974,0.3654471,118110.0,118100.0,0.82714499]
[1753533430195,0.35698078,118110.0,118100.0,0.84407885]
[1753533430654,0.36544703,118110.0,118100.0,0.83561196]
[1753533431994,0.36544703,118110.0,118100.0,0.81257885]
[1753533432226,0.36544703,118110.0,118100.0,0.80411196]
[1753533432744,0.36544703,118110.0,118100.0,0.81257885]
[1753533432985,0.36544703,118110.0,118100.0,0.80411196]
[1753533433286,0.36544703,118110.0,118100.0,0.81257885]
[1753533433573,0.36544703,118110.0,118100.0,0.47850678]
[1753533433780,0.36544703,118110.0,118100.0,0.79564499]
[1753533433991,0.36544703,118110.0,118100.0,0.80411196]
[1753533436790,0.37391342,118110.0,118100.0,0.79564499]
[1753533436993,0.37391335,118110.0,118100.0,0.79564499]
[1753533437231,0.37391335,118110.0,118100.0,0.80411196]
[1753533437457,0.36544703,118110.0,118100.0,0.80411196]
[1753533437639,0.37391342,118110.0,118100.0,0.79564499]
[1753533438010,0.36544703,118110.0,118100.0,0.79564499]
[1753533438198,0.36544703,118110.0,118100.0,0.80411196]
[1753533438402,0.37391335,118110.0,118100.0,0.79564499]
[1753533438613,0.37391335,118110.0,118100.0,0.80411196]
[1753533440038,0.37391335,118110.0,118100.0,0.79564499]
[1753533440242,0.36544703,118110.0,118100.0,0.80411196]
[1753533440692,0.36544703,118110.0,118100.0,0.79564499]
[1753533440850,0.34004857,118110.0,118100.0,0.84227885]
[1753533441046,0.3485146,118110.0,118100.0,0.84227885]
[1753533441269,0.34004857,118110.0,118100.0,0.84227885]
[1753533441473,0.34851475,118110.0,118100.0,0.84227885]
[1753533441743,0.34004857,118110.0,118100.0,0.84227885]
[1753533441924,0.34851468,118110.0,118100.0,0.84227885]
[1753533443538,0.35698086,118110.0,118100.0,0.84227885]
[1753533444385,0.34851468,118110.0,118100.0,0.84227885]
[1753533446956,0.36544739,118110.0,118100.0,0.37061981]
[1753533447181,0.34004857,118110.0,118100.0,0.74905472]
[1753533447402,4.857e-05,118110.0,118100.0,0.83353202]
[1753533448735,0.40004857,118110.0,118100.0,0.51639381]
[1753533448961,0.40004857,118110.0,118100.0,0.83353202]
[1753533459415,4.857e-05,118110.0,118100.0,0.83353202]
[1753533459593,4.857e-05,118110.0,118100.0,0.91800932]
[1753533466056,4.857e-05,118110.0,118100.0,0.60087111]
[1753533466289,4.857e-05,118110.0,118100.0,0.91800932]
[1753533469446,4.857e-05,118110.0,118100.0,0.94285794]
[1753533483601,4.857e-05,118110.0,118100.0,0.94269794]
[1753533483840,4.857e-05,118110.0,118100.0,0.80555105]
[1753533484066,4.857e-05,118110.0,118090.0,0.47056235]
[1753533484067,0.19474933,118100.0,118090.0,0.47056235]
[1753533484339,0.22511437,118090.0,118080.0,0.20316395]
[1753533484579,0.54324251,118090.0,118080.0,0.16936395]
[1753533484838,0.0393383,118070.0,118060.0,0.18090641]
[1753533485085,5.2522838,118070.0,118060.0,0.18090641]
[1753533485338,0.0403483,118070.0,118060.0,0.32652658]
[1753533485576,0.36932644,118070.0,118060.0,0.33499649]
[1753533485833,0.37779577,118070.0,118060.0,0.3180566]
[1753533486063,0.37779577,118070.0,118060.0,0.33499677]
[1753533486314,0.36932644,118070.0,118060.0,0.34354905]
[1753533486768,0.36932644,118070.0,118060.0,0.34354912]
[1753533486990,0.04371904,118070.0,118060.0,0.35201903]
[1753533487243,0.05218823,118070.0,118060.0,0.35201903]
[1753533487441,0.04371904,118070.0,118060.0,0.35201903]
[1753533487685,0.05218823,118070.0,118060.0,0.35201903]
[1753533487903,0.05218823,118070.0,118060.0,0.34354912]
[1753533488551,0.03484904,118070.0,118060.0,0.35201903]
[1753533488746,0.04331823,118070.0,118060.0,0.34354912]
[1753533489083,0.03484904,118070.0,118060.0,0.35201867]
[1753533489305,0.04331816,118070.0,118060.0,0.34354884]
[1753533489541,0.04331816,118070.0,118060.0,0.37734884]
[1753533489749,0.04331816,118070.0,118060.0,0.38581867]
[1753533490156,0.04331816,118070.0,118060.0,0.37734884]
[1753533491014,0.03484904,118070.0,118060.0,0.37734884]
[1753533491210,0.03484904,118070.0,118060.0,0.36887893]
[1753533491461,0.03484904,118070.0,118060.0,0.37734884]
[1753533492239,0.03187904,118070.0,118060.0,0.37734884]
[1753533492481,0.03187904,118070.0,118060.0,0.38581867]
[1753533492696,0.03187904,118070.0,118060.0,0.36887872]
[1753533492991,0.0403483,118070.0,118060.0,0.36887907]
[1753533493197,0.04034823,118070.0,118060.0,0.37734898]
[1753533493624,0.03187904,118070.0,118060.0,0.37734898]
[1753533494176,0.03187904,118070.0,118060.0,0.38581881]
[1753533494394,0.04034823,118070.0,118060.0,0.37734898]
[1753533494593,0.03187904,118070.0,118060.0,0.38581881]
[1753533494844,0.04034823,118070.0,118060.0,0.37734898]
[1753533495044,0.03187904,118070.0,118060.0,0.37734898]
[1753533495294,0.03187904,118070.0,118060.0,0.38581881]
[1753533495765,0.03187904,118070.0,118060.0,0.37734898]
[1753533495967,0.02341,118070.0,118060.0,0.38581874]
[1753533496093,0.0318789,118070.0,118060.0,0.38581874]
[1753533496294,0.04034794,118070.0,118060.0,0.38581881]
[1753533496495,0.04881713,118070.0,118060.0,0.36887907]
[1753533496731,0.04881713,118070.0,118060.0,0.37734898]
[1753533496972,0.04881713,118070.0,118060.0,0.36887907]
[1753533497197,0.04034794,118070.0,118060.0,0.37734898]
[1753533497411,0.0488172,118070.0,118060.0,0.36040909]
[1753533497617,0.0488172,118070.0,118060.0,0.36887907]
[1753533498011,0.04881713,118070.0,118060.0,0.36887907]
[1753533498431,0.04881713,118070.0,118060.0,0.37734898]
[1753533498657,0.04881713,118070.0,118060.0,0.36887907]
[1753533498821,0.04881713,118070.0,118060.0,0.37734898]
[1753533499028,0.04881706,118070.0,118060.0,0.37734898]
[1753533499445,0.04881706,118070.0,118060.0,0.38581881]
[1753533499872,0.04881706,118070.0,118060.0,0.37930898]
[1753533501177,0.04881706,118070.0,118060.0,0.37377907]
[1753533501378,0.05728632,118070.0,118060.0,0.37377907]
[1753533502016,0.04881706,118070.0,118060.0,0.38224898]
[1753533502464,0.05728632,118070.0,118060.0,0.37377907]
[1753533502683,0.04881706,118070.0,118060.0,0.37377907]
[1753533503129,0.05728632,118070.0,118060.0,0.36530909]
[1753533503377,0.05728632,118070.0,118060.0,0.37377907]
[1753533503628,0.05728632,118070.0,118060.0,0.36530909]
[1753533504266,0.05728632,118070.0,118060.0,0.37377907]
[1753533504561,0.04881706,118070.0,118060.0,0.37377907]
[1753533504758,0.05728625,118070.0,118060.0,0.38224898]
[1753533505001,0.05728625,118070.0,118060.0,0.37377907]
[1753533505577,0.06575558,118070.0,118060.0,0.36530909]
[1753533505827,0.06575558,118070.0,118060.0,0.36530916]
[1753533506239,0.05728625,118070.0,118060.0,0.36530916]
[1753533506443,0.05728625,118070.0,118060.0,0.37377914]
[1753533506667,0.06575609,118070.0,118060.0,0.36530923]
[1753533506890,5.46669677,118070.0,118060.0,0.30966986]
[1753533507044,0.02540957,118060.0,118050.0,0.1410186]
[1753533507239,0.05884981,118060.0,118050.0,0.14803634]
[1753533507474,0.05884981,118060.0,118050.0,0.31742963]
[1753533507669,0.05884981,118060.0,118050.0,0.31531189]
[1753533507870,0.05038019,118060.0,118050.0,0.31531189]
[1753533508073,0.04191,118060.0,118050.0,0.3237828]
[1753533508286,0.04191,118060.0,118050.0,0.3247828]
[1753533508483,0.04191,118060.0,118050.0,0.33325364]
[1753533508656,0.04191,118060.0,118050.0,0.3247828]
[1753533509081,0.04191,118060.0,118050.0,0.3267828]
[1753533509268,0.03343988,118060.0,118050.0,0.3267828]
[1753533509466,0.04191007,118060.0,118050.0,0.3267828]
[1753533509670,0.03343988,118060.0,118050.0,0.3267828]
[1753533509882,0.04191007,118060.0,118050.0,0.3267828]
[1753533510292,0.04191007,118060.0,118050.0,0.32678287]
[1753533510489,0.04191007,118060.0,118050.0,0.33525378]
[1753533510709,0.04191007,118060.0,118050.0,0.32678287]
[1753533511033,0.04191,118060.0,118050.0,0.34372462]
[1753533511231,0.04191,118060.0,118050.0,0.33525378]
[1753533511673,0.05038026,118060.0,118050.0,0.32678287]
[1753533512089,0.04191,118060.0,118050.0,0.33525378]
[1753533513263,0.04191,118060.0,118050.0,0.32678287]
[1753533513480,0.03343988,118060.0,118050.0,0.33525371]
[1753533513938,0.04191007,118060.0,118050.0,0.35225371]
[1753533514152,0.03343945,118060.0,118050.0,0.35225371]
[1753533514358,0.01693945,118060.0,118050.0,0.36072448]
[1753533514608,0.00846962,118060.0,118050.0,0.6864966]
[1753533514815,0.02540922,118060.0,118050.0,0.6864966]
[1753533515019,0.02540922,118060.0,118050.0,0.69496722]
[1753533515245,0.02540922,118060.0,118050.0,0.68649631]
[1753533515455,0.02540922,118060.0,118050.0,0.69496686]
[1753533515659,0.02540922,118060.0,118050.0,0.67802569]
[1753533516145,0.0338792,118060.0,118050.0,0.67802569]
[1753533516937,0.02540922,118060.0,118050.0,0.68649631]
[1753533517178,0.02540922,118060.0,118050.0,0.67802569]
[1753533517401,0.03387927,118060.0,118050.0,0.669555]
[1753533517647,0.02540922,118060.0,118050.0,0.67802569]
[1753533518114,0.02540922,118060.0,118050.0,0.68649631]
[1753533518322,0.02540922,118060.0,118050.0,0.69496686]
[1753533518530,0.03387905,118060.0,118050.0,0.68649631]
[1753533519443,0.03387905,118060.0,118050.0,0.669555]
[1753533519648,0.03387905,118060.0,118050.0,0.67802569]
[1753533519921,0.03387905,118060.0,118050.0,0.36072419]
[1753533520169,0.02540907,118060.0,118050.0,0.68649631]
[1753533520418,0.03387898,118060.0,118050.0,0.68649631]
[1753533521263,0.03387898,118060.0,118050.0,0.67802569]
[1753533521512,0.04234903,118060.0,118050.0,0.669555]
[1753533522010,0.04234903,118060.0,118050.0,0.67802569]
[1753533522224,0.03387941,118060.0,118050.0,0.3437828]
[1753533522506,0.0423496,118060.0,118050.0,0.3437828]
[1753533522760,0.0443496,118060.0,118050.0,0.20663189]
[1753533522983,0.0621496,118060.0,118050.0,0.65251514]
[1753533523258,0.0621496,118060.0,118050.0,0.6440443]
[1753533523518,0.05367941,118060.0,118050.0,0.63557339]
[1753533523782,0.0621496,118060.0,118050.0,0.31827189]
[1753533523992,0.05367991,118060.0,118050.0,0.65251528]
[1753533524482,0.05367991,118060.0,118050.0,0.64404437]
[1753533524951,0.18231991,118060.0,118050.0,0.65251521]
[1753533525072,0.17384972,118060.0,118050.0,0.65251521]
[1753533525288,0.16537967,118060.0,118050.0,0.65251528]
[1753533525523,0.14757967,118060.0,118050.0,0.67668597]
[1753533525727,0.15604972,118060.0,118050.0,0.67668597]
[1753533525939,0.15604972,118060.0,118050.0,0.67668612]
[1753533525940,0.16451991,118060.0,118050.0,0.67668612]
[1753533526347,0.18071991,118060.0,118050.0,0.64404437]
[1753533526805,0.16451991,118060.0,118050.0,0.66821521]
[1753533526990,0.16451991,118060.0,118050.0,0.35091378]
[1753533527194,0.16451991,118060.0,118050.0,0.66821528]
[1753533527391,0.17224972,118060.0,118050.0,0.67668612]
[1753533527644,0.18071991,118060.0,118050.0,0.67668612]
[1753533527875,0.17224972,118060.0,118050.0,0.66821528]
[1753533528023,0.35012529,118060.0,118050.0,0.17239329]
[1753533528234,0.38543529,118060.0,118050.0,0.18086427]
[1753533528459,0.66211738,118060.0,118050.0,0.20760329]
[1753533528872,0.34481588,118060.0,118050.0,0.20760329]
[1753533529513,0.33634583,118060.0,118050.0,0.20760329]
[1753533530718,0.36849583,118060.0,118050.0,0.17239329]
[1753533531684,0.33318583,118060.0,118050.0,0.17239329]
[1753533531883,0.33318583,118060.0,118050.0,0.20760329]
[1753533532110,0.33318583,118060.0,118050.0,0.20968329]
[1753533532319,0.33318583,118060.0,118050.0,0.22135427]
[1753533532547,0.33318583,118060.0,118050.0,0.21288329]
[1753533532974,0.31498583,118060.0,118050.0,0.21288329]
[1753533533779,0.14558045,118060.0,118050.0,0.21288329]
[1753533534183,0.14558017,118060.0,118050.0,0.21288329]
[1753533534395,5.26129657,118070.0,118060.0,0.18510538]
[1753533534600,5.5593281,118070.0,118060.0,0.17148538]
[1753533534751,5.5613081,118070.0,118060.0,0.20989538]
[1753533535368,5.5613081,118070.0,118060.0,0.20781538]
[1753533536184,5.55283898,118070.0,118060.0,0.20781538]
[1753533543662,5.55283898,118070.0,118060.0,0.20461538]
[1753533543964,5.87014048,118070.0,118060.0,0.20461538]
[1753533544452,5.55283898,118070.0,118060.0,0.20461538]
[1753533547139,5.57203898,118070.0,118060.0,0.20461538]
[1753533550386,5.57203898,118070.0,118060.0,0.22021538]
[1753533552264,5.26553855,118070.0,118060.0,0.22021538]
[1753533552436,5.41107722,118070.0,118060.0,0.24994564]
[1753533553028,5.41107715,118070.0,118060.0,0.24147538]
[1753533553228,5.41107715,118070.0,118060.0,0.24994564]
[1753533553425,5.41107715,118070.0,118060.0,0.24147538]
[1753533554292,5.40909715,118070.0,118060.0,0.24147538]
[1753533554509,5.57848818,118070.0,118060.0,0.24147538]
[1753533554694,5.20708818,118070.0,118060.0,0.58147538]
[1753533554901,5.21555751,118070.0,118060.0,0.58147538]
[1753533555104,5.21753751,118070.0,118060.0,0.58147538]
[1753533556799,0.32173051,118070.0,118060.0,0.58147538]
[1753533557010,5.21753751,118070.0,118060.0,0.58147538]
[1753533558229,5.21271684,118070.0,118060.0,0.58147538]
[1753533559842,5.21271684,118070.0,118060.0,0.24147538]
[1753533564876,5.20424751,118070.0,118060.0,0.24147538]
[1753533570712,4.897787,118070.0,118060.0,0.25841569]
[1753533570853,5.04130516,118070.0,118060.0,0.56724714]
[1753533571066,5.04977449,118070.0,118060.0,0.58418731]
[1753533571275,5.04977449,118070.0,118060.0,0.59265729]
[1753533571489,5.04130516,118070.0,118060.0,0.59265729]
[1753533571787,5.04130516,118070.0,118060.0,0.6011272]
[1753533572236,5.04130516,118070.0,118060.0,0.59265729]
[1753533572655,5.04130516,118070.0,118060.0,0.6011272]
[1753533572927,5.04130516,118070.0,118060.0,0.59265729]
[1753533573788,5.04130516,118070.0,118060.0,0.6011272]
[1753533576077,5.04130509,118070.0,118060.0,0.59265694]
[1753533576442,5.04977428,118070.0,118060.0,0.59265694]
[1753533577033,0.15396728,118070.0,118060.0,0.59265694]
[1753533577235,5.04977428,118070.0,118060.0,0.59265694]
[1753533577876,5.05824354,118070.0,118060.0,0.58418703]
[1753533578069,5.04977428,118070.0,118060.0,0.59265694]
[1753533578922,5.05824368,118070.0,118060.0,0.2499455]
[1753533579231,5.05824361,118070.0,118060.0,0.57571705]
[1753533579645,5.05824361,118070.0,118060.0,0.2499455]
[1753533579774,5.05824361,118070.0,118060.0,0.25841555]
[1753533579980,5.05824361,118070.0,118060.0,0.57571705]
[1753533580890,5.05824361,118070.0,118060.0,0.58418703]
[1753533581092,5.04977428,118070.0,118060.0,0.58418703]
[1753533581550,5.04130509,118070.0,118060.0,0.59265686]
[1753533581748,5.04130509,118070.0,118060.0,0.58418703]
[1753533581962,5.04130509,118070.0,118060.0,0.60112677]
[1753533582189,5.04130509,118070.0,118060.0,0.59265694]
[1753533582793,5.04130509,118070.0,118060.0,0.58418703]
[1753533582947,5.04977442,118070.0,118060.0,0.57571705]
[1753533583506,5.04977442,118070.0,118060.0,0.567247]
[1753533583866,5.05175442,118070.0,118060.0,0.567247]
[1753533584284,5.05175442,118070.0,118060.0,0.57571705]
[1753533584667,5.05175442,118070.0,118060.0,0.567247]
[1753533585080,5.05175442,118070.0,118060.0,0.57571705]
[1753533586216,5.0602239,118070.0,118060.0,0.567247]
[1753533586566,5.0602239,118070.0,118060.0,0.24994564]
[1753533586755,5.22961493,118070.0,118060.0,0.55877688]
[1753533586951,5.22114596,118070.0,118060.0,0.56724714]
[1753533587288,5.05175493,118070.0,118060.0,0.56724714]
[1753533588056,5.05175493,118070.0,118060.0,0.57571733]
[1753533588230,5.05175493,118070.0,118060.0,0.55877688]
[1753533589811,5.05175493,118070.0,118060.0,0.56518714]
[1753533590510,5.22114596,118070.0,118060.0,0.3842115]
[1753533590694,5.25082684,118070.0,118060.0,0.06691]
[1753533590897,5.25082684,118070.0,118060.0,0.0317]
[1753533591074,5.24235751,118070.0,118060.0,0.0317]
[1753533591620,0.01694002,118060.0,118050.0,0.33601329]
[1753533591832,0.05708002,118060.0,118050.0,0.33601329]
[1753533592325,0.05708002,118060.0,118050.0,0.37372329]
[1753533592592,0.34653557,118060.0,118050.0,0.22580329]
[1753533592803,4.895807,118050.0,118040.0,0.71094744]
[1753533593009,0.01694132,118050.0,118040.0,0.72141892]
[1753533593222,0.0254118,118050.0,118040.0,0.72989033]
[1753533593454,0.03388214,118050.0,118040.0,0.72141892]
[1753533593669,0.03388206,118050.0,118040.0,0.72989033]
[1753533594348,0.03388206,118050.0,118040.0,0.73836167]
[1753533594541,0.03388206,118050.0,118040.0,0.72989033]
[1753533594696,0.02541137,118050.0,118040.0,0.73836167]
[1753533594902,0.03388206,118050.0,118040.0,0.73189033]
[1753533595313,0.03388206,118050.0,118040.0,0.74036167]
[1753533595512,0.02541137,118050.0,118040.0,0.74036167]
[1753533595937,0.02541137,118050.0,118040.0,0.74336167]
[1753533596920,0.02541137,118050.0,118040.0,0.74336095]
[1753533597135,0.01694082,118050.0,118040.0,0.74336095]
[1753533597923,0.01694082,118050.0,118040.0,0.73488975]
[1753533598140,0.01694082,118050.0,118040.0,0.74336095]
[1753533598328,0.00847034,118050.0,118040.0,0.74336095]
[1753533598728,0.01694082,118050.0,118040.0,0.74336095]
[1753533598921,0.00847034,118050.0,118040.0,0.74336095]
[1753533600183,0.00847034,118050.0,118040.0,0.42605945]
[1753533600376,0.00847034,118050.0,118040.0,0.74336095]
[1753533600577,0.00847034,118050.0,118040.0,0.42605945]
[1753533600796,0.00847034,118050.0,118040.0,0.74336095]
[1753533601648,0.50847034,118050.0,118040.0,0.74336095]
[1753533601862,5.395807,118050.0,118040.0,0.74336095]
[1753533602076,4.895807,118050.0,118040.0,0.74336095]
[1753533604941,4.895807,118050.0,118040.0,0.42605945]
[1753533605113,4.895807,118050.0,118040.0,0.74336095]
[1753533606272,4.895807,118050.0,118040.0,0.42605945]
[1753533606484,4.895807,118050.0,118040.0,0.74336095]
[1753533609683,4.895807,118050.0,118040.0,0.42605945]
[1753533609902,4.895807,118050.0,118040.0,0.74336095]
[1753533617880,0.19823963,118060.0,118050.0,0.21806133]
[1753533618102,0.19823963,118060.0,118050.0,0.65541214]
[1753533618103,5.09602663,118060.0,118050.0,0.65541214]
[1753533618272,4.96750663,118060.0,118050.0,0.66388291]
[1753533618507,4.96750663,118060.0,118050.0,0.6723536]
[1753533618919,4.95903658,118060.0,118050.0,0.6723536]
[1753533619168,4.95903658,118060.0,118050.0,0.66688291]
[1753533619733,4.95903658,118060.0,118050.0,0.6753536]
[1753533620267,4.9675067,118060.0,118050.0,0.66688291]
[1753533620472,4.9675067,118060.0,118050.0,0.66688298]
[1753533621784,4.95903658,118060.0,118050.0,0.67535375]
[1753533622364,4.96750663,118060.0,118050.0,0.67535375]
[1753533622564,4.96750663,118060.0,118050.0,0.66688298]
[1753533622770,4.96750663,118060.0,118050.0,0.67535375]
[1753533623042,4.96750663,118060.0,118050.0,0.68382444]
[1753533623242,4.96750663,118060.0,118050.0,0.35805225]
[1753533623448,4.96750663,118060.0,118050.0,0.68382444]
[1753533624054,4.96750663,118060.0,118050.0,0.67535375]
[1753533624245,4.96750663,118060.0,118050.0,0.68382444]
[1753533624453,4.96750663,118060.0,118050.0,0.66688298]
[1753533624676,5.1284426,118060.0,118050.0,0.65841214]
[1753533624906,5.11997262,118060.0,118050.0,0.65841221]
[1753533625237,0.22416562,118060.0,118050.0,0.65841221]
[1753533625447,5.11997262,118060.0,118050.0,0.65841221]
[1753533626559,5.24845262,118060.0,118050.0,0.65841221]
[1753533633915,5.23998257,118060.0,118050.0,0.48899248]
[1753533634125,5.23998257,118060.0,118050.0,0.53262339]
[1753533634587,5.23998257,118060.0,118050.0,0.70204312]
[1753533634797,5.23998257,118060.0,118050.0,0.71051396]
[1753533634986,5.20414257,118060.0,118050.0,0.71051396]
[1753533635550,5.20414257,118060.0,118050.0,0.70204312]
[1753533636125,5.20414257,118060.0,118050.0,0.39321246]
[1753533636357,5.20414257,118060.0,118050.0,0.70204312]
[1753533637186,5.20414257,118060.0,118050.0,0.38474162]
[1753533637487,5.20414257,118060.0,118050.0,0.70204312]
[1753533637859,5.07566257,118060.0,118050.0,0.70204312]
[1753533638267,5.07566257,118060.0,118050.0,0.38474162]
[1753533638579,5.07566257,118060.0,118050.0,0.70204312]
[1753533638880,5.08413255,118060.0,118050.0,0.70204312]
[1753533639994,5.08413255,118060.0,118050.0,0.38474162]
[1753533640209,5.08413255,118060.0,118050.0,0.36779973]
[1753533640421,5.08413255,118060.0,118050.0,0.68510123]
[1753533640620,5.08413255,118060.0,118050.0,0.69357214]
[1753533641040,5.08413255,118060.0,118050.0,0.70204312]
[1753533641471,0.18832555,118060.0,118050.0,0.69357221]
[1753533641711,5.08413255,118060.0,118050.0,0.70204312]
[1753533641887,5.08413255,118060.0,118050.0,0.69357221]
[1753533642094,5.08413255,118060.0,118050.0,0.70204312]
[1753533642302,5.08413255,118060.0,118050.0,0.69357221]
[1753533642547,5.08413255,118060.0,118050.0,0.70204312]
[1753533643312,5.08413255,118060.0,118050.0,0.39321246]
[1753533643512,5.08413255,118060.0,118050.0,0.71051396]
[1753533644106,5.21261255,118060.0,118050.0,0.71051396]
[1753533644615,5.04320717,118060.0,118050.0,0.71051396]
[1753533645077,5.04320717,118060.0,118050.0,0.70204312]
[1753533648543,5.04320717,118060.0,118050.0,0.57352312]
[1753533649056,5.04320717,118060.0,118050.0,0.70196312]
[1753533649471,5.04320717,118060.0,118050.0,0.57352312]
[1753533649599,5.04320717,118060.0,118050.0,0.71043396]
[1753533650235,5.04320717,118060.0,118050.0,0.70196312]
[1753533651210,5.04320717,118060.0,118050.0,0.71043396]
[1753533651550,5.05167743,118060.0,118050.0,0.71358396]
[1753533652095,5.05167743,118060.0,118050.0,0.39628246]
[1753533652305,5.05167743,118060.0,118050.0,0.71358396]
[1753533652522,5.05167743,118060.0,118050.0,0.70511312]
[1753533652758,5.05167743,118060.0,118050.0,0.71358396]
[1753533655753,5.05167743,118060.0,118050.0,0.72205473]
[1753533656629,5.05167743,118060.0,118050.0,0.71358396]
[1753533656834,5.05167743,118060.0,118050.0,0.71566396]
[1753533657885,5.05167743,118060.0,118050.0,0.72413473]
[1753533658372,4.897787,118060.0,118050.0,0.73260535]
[1753533658587,0.33170836,118070.0,118060.0,0.16940538]
[1753533658796,5.05163529,118070.0,118060.0,0.56235688]
[1753533658994,5.0431653,118070.0,118060.0,0.57082714]
[1753533659203,4.92319478,118070.0,118060.0,0.57929733]
[1753533659453,5.0431653,118070.0,118060.0,0.58776738]
[1753533659660,4.90427604,118070.0,118060.0,0.79928953]
[1753533659877,5.38118401,118080.0,118070.0,0.20209103]
[1753533660083,5.39163284,118080.0,118070.0,0.56246598]
[1753533660505,5.39163284,118080.0,118070.0,0.57093553]
[1753533660927,5.39163284,118080.0,118070.0,0.56246598]
[1753533661125,5.39263284,118080.0,118070.0,0.56246598]
[1753533661943,5.39363284,118080.0,118070.0,0.56246598]
[1753533662533,5.55454113,118080.0,118070.0,0.24516448]
[1753533662735,5.55454113,118080.0,118070.0,0.24308448]
[1753533662965,5.55454113,118080.0,118070.0,0.23993448]
[1753533664280,5.54607252,118080.0,118070.0,0.23993448]
[1753533664963,5.55451564,118080.0,118070.0,0.23993448]
[1753533667073,0.65870864,118080.0,118070.0,0.23993448]
[1753533667484,5.55451564,118080.0,118070.0,0.23993448]
[1753533668050,5.55451564,118080.0,118070.0,0.56038598]
[1753533669537,0.65870864,118080.0,118070.0,0.56038598]
[1753533669786,5.55451564,118080.0,118070.0,0.56038598]
[1753533670727,0.65870864,118080.0,118070.0,0.56038598]
[1753533670912,5.55451564,118080.0,118070.0,0.56038598]
[1753533678918,0.65870864,118080.0,118070.0,0.56038598]
[1753533679054,5.55451564,118080.0,118070.0,0.56038598]
[1753533681929,0.65870864,118080.0,118070.0,0.56038598]
[1753533682138,5.55451564,118080.0,118070.0,0.56038598]
[1753533682957,0.65870864,118080.0,118070.0,0.56038598]
[1753533683223,5.55451564,118080.0,118070.0,0.24308448]
[1753533683394,5.55451564,118080.0,118070.0,0.56038598]
[1753533684943,0.65870864,118080.0,118070.0,0.56254598]
[1753533685354,5.55451564,118080.0,118070.0,0.56254598]
[1753533695546,5.55451564,118080.0,118070.0,0.24524448]
[1753533695758,5.55451564,118080.0,118070.0,0.56254598]
[1753533698935,5.55451564,118080.0,118070.0,0.24524448]
[1753533700556,5.54604681,118080.0,118070.0,0.24524448]
[1753533701001,5.54604681,118080.0,118070.0,0.56254598]
[1753533701499,5.54604681,118080.0,118070.0,0.24524448]
[1753533702777,5.4260755,118080.0,118070.0,0.30813079]
[1753533702986,5.5694328,118080.0,118070.0,0.24524448]
[1753533703218,5.5694328,118080.0,118070.0,0.56254598]
[1753533703414,0.6736258,118080.0,118070.0,0.56254598]
[1753533703647,5.5694328,118080.0,118070.0,0.56254598]
[1753533703874,5.5694328,118080.0,118070.0,0.25371403]
[1753533704122,5.5694328,118080.0,118070.0,0.57101553]
[1753533704380,5.5694328,118080.0,118070.0,0.24524448]
[1753533704574,5.5694328,118080.0,118070.0,0.56254598]
[1753533706776,5.5694328,118080.0,118070.0,0.57101553]
[1753533706986,5.40005611,118080.0,118070.0,0.57101553]
[1753533707413,5.40005611,118080.0,118070.0,0.24524448]
[1753533707611,5.40005611,118080.0,118070.0,0.56254598]
[1753533708021,5.40005611,118080.0,118070.0,0.57101553]
[1753533708376,5.40005611,118080.0,118070.0,0.56254598]
[1753533708785,5.40005611,118080.0,118070.0,0.57101553]
[1753533709153,5.40005611,118080.0,118070.0,0.56254598]
[1753533710747,5.5694328,118080.0,118070.0,0.56254598]
[1753533713379,5.4410328,118080.0,118070.0,0.56254598]
[1753533713546,5.5694328,118080.0,118070.0,0.56254598]
[1753533714380,5.4410328,118080.0,118070.0,0.56254598]
[1753533714603,5.5694328,118080.0,118070.0,0.56254598]
[1753533715213,0.6736258,118080.0,118070.0,0.56254598]
[1753533715445,5.5694328,118080.0,118070.0,0.56254598]
[1753533717433,5.5694328,118080.0,118070.0,0.24524448]
[1753533717833,5.5694328,118080.0,118070.0,0.56254598]
[1753533720089,5.5694328,118080.0,118070.0,0.24524448]
[1753533720495,5.56294433,118080.0,118070.0,0.24524448]
[1753533721195,5.55447564,118080.0,118070.0,0.24524448]
[1753533722330,5.54603252,118080.0,118070.0,0.24524448]
[1753533725096,5.54603252,118080.0,118070.0,0.23993448]
[1753533725660,5.54603252,118080.0,118070.0,0.24288448]
[1753533730242,5.54603252,118080.0,118070.0,0.24496448]
[1753533733295,5.54603252,118080.0,118070.0,0.56226598]
[1753533733705,0.65022552,118080.0,118070.0,0.56226598]
[1753533733917,5.54603252,118080.0,118070.0,0.56226598]
[1753533734110,5.54603252,118080.0,118070.0,0.24496448]
[1753533734573,5.55462574,118080.0,118070.0,0.24496448]
[1753533738452,5.55462574,118080.0,118070.0,0.64674328]
[1753533738453,5.2633368,118080.0,118070.0,0.64674328]
[1753533738713,5.28874271,118080.0,118070.0,0.34638081]
[1753533738947,0.39293571,118080.0,118070.0,0.57920501]
[1753533739169,0.52261571,118080.0,118070.0,0.57073553]
[1753533739414,0.52261564,118080.0,118070.0,0.57920501]
[1753533739647,0.52261564,118080.0,118070.0,0.58767441]
[1753533739846,0.52261564,118080.0,118070.0,0.57920501]
[1753533740617,0.48027322,118080.0,118070.0,0.59614331]
[1753533740817,0.502,118080.0,118070.0,0.68062061]
[1753533741688,0.002,118080.0,118070.0,0.36331911]
[1753533741889,0.002,118080.0,118070.0,0.99792211]
[1753533742102,0.002,118080.0,118070.0,0.68062061]
[1753533743127,0.502,118080.0,118070.0,0.68062061]
[1753533743560,0.002,118080.0,118070.0,0.27884181]
[1753533743810,0.502,118080.0,118070.0,0.59614331]
[1753533744238,0.002,118080.0,118070.0,0.59614331]
[1753533745424,0.502,118080.0,118070.0,0.27884181]
[1753533745671,0.002,118080.0,118070.0,0.59614331]
[1753533746113,0.502,118080.0,118070.0,0.59614331]
[1753533746370,0.002,118080.0,118070.0,1.08239941]